[Event "2026 European Womens Championship"]
[Site "Batumi, GE"]
[Date "2026.06.03"]
[Round "9"]
[White "Ivekovic, Tihana"]
[Black "Szczotka, Klara"]
[Result "1-0"]
[Board "45"]
[TimeControl "5400+30"]
[WhiteFideId "14517825"]
[BlackFideId "21858845"]
[WhiteElo "2119"]
[BlackElo "2241"]
[WhiteTitle "WFM"]
[BlackTitle "WFM"]
[WhiteClock "0:30:35"]
[BlackClock "0:26:47"]
[Variant "Standard"]

1. e4 {[%clk 1:30:57]}  c5 {[%clk 1:30:53]} 2. Nf3 {[%clk 1:31:21]}  d6 {[%clk 1:31:19]} 3. d4 {[%clk 1:31:45]}  cxd4 {[%clk 1:31:44]}
4. Nxd4 {[%clk 1:32:09]}  Nf6 {[%clk 1:32:01]} 5. Nc3 {[%clk 1:32:31]}  a6 {[%clk 1:32:25]} 6. a4 {[%clk 1:32:53]}  e5 {[%clk 1:32:31]}
7. Nf3 {[%clk 1:33:16]}  Be7 {[%clk 1:32:14]} 8. Bg5 {[%clk 1:33:32]}  Be6 {[%clk 1:25:22]} 9. Bxf6 {[%clk 1:33:20]}  Bxf6 {[%clk 1:24:43]}
10. Nd5 {[%clk 1:33:14]}  Nd7 {[%clk 1:24:05]} 11. Bc4 {[%clk 1:32:49]}  O-O {[%clk 1:22:35]} 12. O-O {[%clk 1:32:59]}  Rc8 {[%clk 1:22:20]}
13. Qe2 {[%clk 1:32:35]}  Bxd5 {[%clk 1:18:22]} 14. Bxd5 {[%clk 1:32:51]}  Qc7 {[%clk 1:18:42]} 15. c3 {[%clk 1:29:39]}  Nc5 {[%clk 1:15:18]}
16. Nd2 {[%clk 1:25:50]}  Bg5 {[%clk 1:12:01]} 17. Nc4 {[%clk 1:18:25]}  Kh8 {[%clk 1:02:39]} 18. Qg4 {[%clk 1:06:42]}  Bh6 {[%clk 1:01:09]}
19. a5 {[%clk 0:59:00]}  g6 {[%clk 0:43:03]} 20. Qh3 {[%clk 0:46:03]}  Bg7 {[%clk 0:41:59]} 21. f4 {[%clk 0:40:13]}  Rce8 {[%clk 0:33:58]}
22. f5 {[%clk 0:32:04]}  Bf6 {[%clk 0:27:22]} 23. Nb6 {[%clk 0:30:20]}  Kg7 {[%clk 0:26:47]} 24. b4 {[%clk 0:30:35]} 1-0

[Event "2026 European Womens Championship"]
[Site "Batumi, GE"]
[Date "2026.06.03"]
[Round "9"]
[White "Poliakova, Varvara"]
[Black "Peglau, Charis"]
[Result "1-0"]
[Board "46"]
[TimeControl "5400+30"]
[WhiteFideId "13518313"]
[BlackFideId "16219996"]
[WhiteElo "2108"]
[BlackElo "2238"]
[WhiteTitle "WFM"]
[BlackTitle "WFM"]
[WhiteClock "0:13:18"]
[BlackClock "0:35:01"]
[Variant "Standard"]

1. c4 {[%clk 1:30:50]}  c6 {[%clk 1:29:39]} 2. e4 {[%clk 1:27:51]}  d5 {[%clk 1:29:45]} 3. exd5 {[%clk 1:27:55]}  cxd5 {[%clk 1:30:13]}
4. cxd5 {[%clk 1:28:19]}  Nf6 {[%clk 1:30:37]} 5. Nc3 {[%clk 1:28:01]}  g6 {[%clk 1:30:38]} 6. Qb3 {[%clk 1:25:51]}  Bg7 {[%clk 1:30:36]}
7. Bc4 {[%clk 1:24:52]}  O-O {[%clk 1:30:08]} 8. Nf3 {[%clk 1:23:53]}  Nbd7 {[%clk 1:27:29]} 9. O-O {[%clk 1:18:52]}  Nb6 {[%clk 1:17:23]}
10. d3 {[%clk 1:15:06]}  Qd6 {[%clk 1:12:16]} 11. Be3 {[%clk 1:10:53]}  Bf5 {[%clk 0:55:27]} 12. a4 {[%clk 1:06:18]}  Rad8 {[%clk 0:48:49]}
13. Nb5 {[%clk 0:57:49]}  Qb8 {[%clk 0:49:04]} 14. Bxb6 {[%clk 0:49:23]}  axb6 {[%clk 0:49:32]} 15. Rfe1 {[%clk 0:49:22]}  Rfe8 {[%clk 0:37:17]}
16. d6 {[%clk 0:41:41]}  e6 {[%clk 0:37:38]} 17. h3 {[%clk 0:39:56]}  h5 {[%clk 0:37:10]} 18. Ne5 {[%clk 0:34:25]}  Rf8 {[%clk 0:33:25]}
19. d4 {[%clk 0:31:57]}  Ne8 {[%clk 0:18:54]} 20. g4 {[%clk 0:29:38]}  hxg4 {[%clk 0:14:58]} 21. hxg4 {[%clk 0:30:03]}  Bxe5 {[%clk 0:15:20]}
22. dxe5 {[%clk 0:29:54]}  Bxg4 {[%clk 0:15:39]} 23. Re4 {[%clk 0:27:52]}  Bh5 {[%clk 0:15:37]} 24. Qe3 {[%clk 0:26:19]}  Ng7 {[%clk 0:14:53]}
25. Qxb6 {[%clk 0:26:04]}  Nf5 {[%clk 0:13:11]} 26. Ra3 {[%clk 0:25:33]}  Kg7 {[%clk 0:09:17]} 27. Qc7 {[%clk 0:24:14]}  Rh8 {[%clk 0:06:35]}
28. Qxb8 {[%clk 0:23:50]}  Rxb8 {[%clk 0:07:04]} 29. Nd4 {[%clk 0:21:44]}  Nxd4 {[%clk 0:06:44]} 30. Rxd4 {[%clk 0:22:09]}  g5 {[%clk 0:05:10]}
31. Rc3 {[%clk 0:21:24]}  f6 {[%clk 0:04:07]} 32. exf6+ {[%clk 0:20:50]}  Kxf6 {[%clk 0:04:36]} 33. Bb5 {[%clk 0:19:43]}  Ke5 {[%clk 0:02:33]}
34. Rd2 {[%clk 0:19:21]}  Bg4 {[%clk 0:01:35]} 35. d7 {[%clk 0:18:20]}  Kf6 {[%clk 0:01:27]} 36. Kg2 {[%clk 0:16:49]}  Bf5 {[%clk 0:01:39]}
37. b4 {[%clk 0:14:23]}  Ke7 {[%clk 0:01:52]} 38. a5 {[%clk 0:13:30]}  Be4+ {[%clk 0:01:34]} 39. f3 {[%clk 0:13:44]}  Bd5 {[%clk 0:01:54]}
40. Kg3 {[%clk 0:12:57]}  Rbd8 {[%clk 0:00:55]} 41. Rh2 {[%clk 0:08:18]}  Rhf8 {[%clk 0:27:04]} 42. Rh7+ {[%clk 0:37:44]}  Rf7 {[%clk 0:16:16]}
43. Rxf7+ {[%clk 0:38:03]}  Kxf7 {[%clk 0:16:45]} 44. Rc8 {[%clk 0:36:02]}  Ke7 {[%clk 0:17:13]} 45. f4 {[%clk 0:34:38]}  gxf4+ {[%clk 0:17:34]}
46. Kxf4 {[%clk 0:35:06]}  Rxd7 {[%clk 0:14:17]} 47. Bxd7 {[%clk 0:35:27]}  Kxd7 {[%clk 0:14:47]} 48. Rc1 {[%clk 0:35:16]}  Kd6 {[%clk 0:14:45]}
49. b5 {[%clk 0:34:46]}  e5+ {[%clk 0:13:58]} 50. Ke3 {[%clk 0:34:28]}  Kd7 {[%clk 0:13:24]} 51. a6 {[%clk 0:34:37]}  b6 {[%clk 0:13:18]}
52. Rd1 {[%clk 0:35:01]} 1-0

[Event "2026 European Womens Championship"]
[Site "Batumi, GE"]
[Date "2026.06.03"]
[Round "9"]
[White "Purtseladze, Maka"]
[Black "Tashkinova, Sofiia"]
[Result "1-0"]
[Board "47"]
[TimeControl "5400+30"]
[WhiteFideId "13602659"]
[BlackFideId "14188309"]
[WhiteElo "2237"]
[BlackElo "2085"]
[WhiteTitle "IM"]
[BlackTitle "WFM"]
[WhiteClock "0:19:57"]
[BlackClock "0:19:50"]
[Variant "Standard"]

1. d4 {[%clk 1:30:58]}  Nf6 {[%clk 1:30:42]} 2. c4 {[%clk 1:31:24]}  e6 {[%clk 1:31:05]} 3. Nf3 {[%clk 1:31:49]}  b6 {[%clk 1:31:16]}
4. a3 {[%clk 1:32:13]}  Bb7 {[%clk 1:30:58]} 5. Nc3 {[%clk 1:32:35]}  d5 {[%clk 1:31:04]} 6. cxd5 {[%clk 1:32:48]}  Nxd5 {[%clk 1:31:19]}
7. Qc2 {[%clk 1:33:11]}  Nxc3 {[%clk 1:30:53]} 8. bxc3 {[%clk 1:33:34]}  Nd7 {[%clk 1:31:14]} 9. e4 {[%clk 1:33:58]}  c5 {[%clk 1:28:32]}
10. Bd3 {[%clk 1:34:13]}  Be7 {[%clk 1:28:26]} 11. h4 {[%clk 1:25:21]}  Qc7 {[%clk 1:26:50]} 12. Qb1 {[%clk 1:21:58]}  Rc8 {[%clk 1:22:32]}
13. Bg5 {[%clk 1:13:36]}  Nf6 {[%clk 1:12:11]} 14. Bb5+ {[%clk 1:08:52]}  Kf8 {[%clk 1:08:31]} 15. Bd3 {[%clk 1:08:30]}  h6 {[%clk 1:07:42]}
16. Bd2 {[%clk 1:08:50]}  Nh5 {[%clk 1:02:22]} 17. Ne5 {[%clk 0:48:12]}  Bd6 {[%clk 1:00:49]} 18. f4 {[%clk 0:48:27]}  Bxe5 {[%clk 0:54:30]}
19. fxe5 {[%clk 0:47:56]}  c4 {[%clk 0:48:53]} 20. Bc2 {[%clk 0:47:53]}  Qc6 {[%clk 0:44:49]} 21. Rh3 {[%clk 0:44:18]}  f5 {[%clk 0:40:05]}
22. Rf3 {[%clk 0:42:32]}  Kg8 {[%clk 0:34:20]} 23. exf5 {[%clk 0:41:34]}  Rf8 {[%clk 0:34:07]} 24. f6 {[%clk 0:39:39]}  Nxf6 {[%clk 0:26:12]}
25. exf6 {[%clk 0:39:41]}  Rxf6 {[%clk 0:26:36]} 26. Rxf6 {[%clk 0:36:33]}  gxf6 {[%clk 0:27:00]} 27. Qb4 {[%clk 0:36:55]}  Kf7 {[%clk 0:26:13]}
28. O-O-O {[%clk 0:36:34]}  a5 {[%clk 0:26:14]} 29. Qb2 {[%clk 0:29:51]}  h5 {[%clk 0:24:58]} 30. g3 {[%clk 0:28:30]}  b5 {[%clk 0:23:37]}
31. Re1 {[%clk 0:28:38]}  Qd7 {[%clk 0:23:16]} 32. Bf4 {[%clk 0:28:18]}  Ra8 {[%clk 0:22:02]} 33. Bd1 {[%clk 0:28:21]}  Bd5 {[%clk 0:20:55]}
34. Bxh5+ {[%clk 0:28:34]}  Kg7 {[%clk 0:21:17]} 35. Qc2 {[%clk 0:28:29]}  f5 {[%clk 0:22:11]} 36. Be5+ {[%clk 0:29:19]}  Kh7 {[%clk 0:22:18]}
37. g4 {[%clk 0:26:35]}  Qe7 {[%clk 0:22:06]} 38. gxf5 {[%clk 0:26:31]}  Kh6 {[%clk 0:19:46]} 39. f6 {[%clk 0:18:42]}  Qxa3+ {[%clk 0:20:04]}
40. Kd2 {[%clk 0:19:04]}  Rg8 {[%clk 0:19:07]} 41. Bf4+ {[%clk 0:18:44]}  Kxh5 {[%clk 0:19:21]} 42. Qh7+ {[%clk 0:19:10]}  Kg4 {[%clk 0:19:44]}
43. Qxg8+ {[%clk 0:19:27]}  Kxf4 {[%clk 0:19:47]} 44. Qg5+ {[%clk 0:19:37]}  Kf3 {[%clk 0:19:50]} 45. Rf1+ {[%clk 0:19:57]} 1-0

[Event "2026 European Womens Championship"]
[Site "Batumi, GE"]
[Date "2026.06.03"]
[Round "9"]
[White "Orian, Noga"]
[Black "Liavonava, Yuliya"]
[Result "1-0"]
[Board "48"]
[TimeControl "5400+30"]
[WhiteFideId "2836475"]
[BlackFideId "13524178"]
[WhiteElo "2231"]
[BlackElo "2118"]
[WhiteTitle "WIM"]
[BlackTitle "WFM"]
[WhiteClock "0:02:13"]
[BlackClock "0:02:01"]
[Variant "Standard"]

1. d4 {[%clk 1:30:57]}  d5 {[%clk 1:30:50]} 2. Nf3 {[%clk 1:31:13]}  Nf6 {[%clk 1:31:15]} 3. g3 {[%clk 1:31:36]}  Nbd7 {[%clk 1:28:33]}
4. Bg2 {[%clk 1:31:16]}  Nb6 {[%clk 1:28:43]} 5. O-O {[%clk 1:29:16]}  Bf5 {[%clk 1:27:49]} 6. b3 {[%clk 1:28:50]}  c6 {[%clk 1:26:06]}
7. a4 {[%clk 1:29:08]}  a5 {[%clk 1:21:21]} 8. Bb2 {[%clk 1:28:46]}  e6 {[%clk 1:20:59]} 9. Nbd2 {[%clk 1:28:42]}  Be7 {[%clk 1:20:35]}
10. Re1 {[%clk 1:28:02]}  O-O {[%clk 1:20:01]} 11. Ne5 {[%clk 1:22:00]}  h6 {[%clk 1:18:46]} 12. Rc1 {[%clk 1:17:13]}  Nbd7 {[%clk 1:12:01]}
13. e3 {[%clk 1:15:09]}  Rc8 {[%clk 1:00:43]} 14. Qe2 {[%clk 1:13:32]}  Qc7 {[%clk 0:55:05]} 15. c4 {[%clk 1:10:02]}  Bb4 {[%clk 0:47:56]}
16. Nd3 {[%clk 1:05:03]}  Bxd3 {[%clk 0:46:34]} 17. Qxd3 {[%clk 1:05:30]}  Ne4 {[%clk 0:46:55]} 18. Bxe4 {[%clk 1:02:03]}  dxe4 {[%clk 0:47:22]}
19. Qc2 {[%clk 1:02:20]}  Bxd2 {[%clk 0:47:45]} 20. Qxd2 {[%clk 1:02:48]}  f5 {[%clk 0:44:31]} 21. Bc3 {[%clk 0:59:24]}  b6 {[%clk 0:38:38]}
22. Rb1 {[%clk 0:59:05]}  Rcd8 {[%clk 0:36:51]} 23. Qb2 {[%clk 0:58:12]}  Nf6 {[%clk 0:35:59]} 24. b4 {[%clk 0:52:03]}  Qf7 {[%clk 0:27:54]}
25. Qe2 {[%clk 0:48:04]}  axb4 {[%clk 0:21:43]} 26. Rxb4 {[%clk 0:47:52]}  Nd7 {[%clk 0:20:46]} 27. Ra1 {[%clk 0:44:39]}  Ra8 {[%clk 0:20:54]}
28. Qd1 {[%clk 0:44:17]}  Rfd8 {[%clk 0:19:33]} 29. Qe2 {[%clk 0:35:01]}  g5 {[%clk 0:18:12]} 30. h3 {[%clk 0:33:55]}  Kh7 {[%clk 0:17:44]}
31. Kh2 {[%clk 0:31:48]}  Rg8 {[%clk 0:17:23]} 32. c5 {[%clk 0:23:31]}  bxc5 {[%clk 0:16:51]} 33. Rb7 {[%clk 0:24:00]}  cxd4 {[%clk 0:15:50]}
34. Bxd4 {[%clk 0:24:29]}  Rgb8 {[%clk 0:15:14]} 35. Rab1 {[%clk 0:24:45]}  Kg6 {[%clk 0:08:34]} 36. Qc2 {[%clk 0:21:41]}  Rxb7 {[%clk 0:06:14]}
37. Rxb7 {[%clk 0:21:39]}  c5 {[%clk 0:06:40]} 38. Bb2 {[%clk 0:16:14]}  Qe8 {[%clk 0:06:59]} 39. Qd2 {[%clk 0:09:47]}  Rd8 {[%clk 0:04:15]}
40. Qd6 {[%clk 0:05:51]}  Nf6 {[%clk 0:02:21]} 41. Qxc5 {[%clk 0:02:00]}  Rd5 {[%clk 0:18:10]} 42. Qb4 {[%clk 0:27:17]}  h5 {[%clk 0:15:37]}
43. Rb8 {[%clk 0:22:52]}  Qd7 {[%clk 0:12:19]} 44. Qf8 {[%clk 0:14:12]}  e5 {[%clk 0:09:21]} 45. Rb6 {[%clk 0:13:54]}  Qf7 {[%clk 0:09:49]}
46. Qb8 {[%clk 0:08:20]}  Qe7 {[%clk 0:10:13]} 47. Ba3 {[%clk 0:08:19]}  Qf7 {[%clk 0:04:46]} 48. Bb4 {[%clk 0:05:40]}  h4 {[%clk 0:04:29]}
49. gxh4 {[%clk 0:05:21]}  g4 {[%clk 0:02:57]} 50. Qh8 {[%clk 0:04:50]}  gxh3 {[%clk 0:02:21]} 51. Rxf6+ {[%clk 0:01:49]}  Qxf6 {[%clk 0:02:49]}
52. Qg8+ {[%clk 0:02:18]}  Qg7 {[%clk 0:01:10]} 53. h5+ {[%clk 0:01:19]}  Kf6 {[%clk 0:01:37]} 54. Be7+ {[%clk 0:01:44]}  Qxe7 {[%clk 0:02:01]}
55. Qg6# {[%clk 0:02:13]} 1-0

[Event "2026 European Womens Championship"]
[Site "Batumi, GE"]
[Date "2026.06.03"]
[Round "9"]
[White "Dimitrijevic, Aleksandra"]
[Black "Rudzinska, Michalina"]
[Result "1/2-1/2"]
[Board "49"]
[TimeControl "5400+30"]
[WhiteFideId "929239"]
[BlackFideId "1172883"]
[WhiteElo "2059"]
[BlackElo "2200"]
[WhiteTitle "WGM"]
[BlackTitle "WGM"]
[WhiteClock "0:14:10"]
[BlackClock "0:04:29"]
[Variant "Standard"]

1. d4 {[%clk 1:30:59]}  Nf6 {[%clk 1:30:50]} 2. c4 {[%clk 1:31:22]}  e6 {[%clk 1:31:06]} 3. g3 {[%clk 1:31:47]}  Bb4+ {[%clk 1:31:12]}
4. Bd2 {[%clk 1:32:10]}  Qe7 {[%clk 1:31:11]} 5. Bg2 {[%clk 1:32:31]}  Bxd2+ {[%clk 1:30:56]} 6. Qxd2 {[%clk 1:31:57]}  Nc6 {[%clk 1:28:00]}
7. Nc3 {[%clk 1:28:38]}  d6 {[%clk 1:23:20]} 8. e3 {[%clk 1:28:05]}  e5 {[%clk 1:22:17]} 9. d5 {[%clk 1:23:56]}  Nb8 {[%clk 1:22:01]}
10. Qc2 {[%clk 1:20:30]}  O-O {[%clk 1:18:33]} 11. Nge2 {[%clk 1:19:32]}  a5 {[%clk 1:18:22]} 12. a3 {[%clk 1:19:15]}  Nfd7 {[%clk 1:03:02]}
13. e4 {[%clk 1:02:20]}  Nc5 {[%clk 0:58:59]} 14. O-O {[%clk 1:01:06]}  a4 {[%clk 0:55:48]} 15. f4 {[%clk 0:59:46]}  Nbd7 {[%clk 0:53:23]}
16. Rae1 {[%clk 0:58:20]}  Nb6 {[%clk 0:50:06]} 17. Nd1 {[%clk 0:58:04]}  Nb3 {[%clk 0:41:54]} 18. Ne3 {[%clk 0:56:20]}  c6 {[%clk 0:40:49]}
19. dxc6 {[%clk 0:46:41]}  bxc6 {[%clk 0:41:07]} 20. Kh1 {[%clk 0:46:57]}  Ra5 {[%clk 0:35:34]} 21. Nc3 {[%clk 0:38:07]}  Nd4 {[%clk 0:34:15]}
22. Qd1 {[%clk 0:36:42]}  Ba6 {[%clk 0:32:32]} 23. Nf5 {[%clk 0:31:33]}  Nxf5 {[%clk 0:32:51]} 24. exf5 {[%clk 0:31:58]}  Bxc4 {[%clk 0:26:32]}
25. f6 {[%clk 0:27:19]}  Qxf6 {[%clk 0:24:53]} 26. fxe5 {[%clk 0:26:32]}  Qh6 {[%clk 0:24:53]} 27. Rf2 {[%clk 0:22:57]}  dxe5 {[%clk 0:23:24]}
28. Qf3 {[%clk 0:21:49]}  Nd5 {[%clk 0:14:44]} 29. Rxe5 {[%clk 0:18:01]}  Nxc3 {[%clk 0:14:35]} 30. Rxa5 {[%clk 0:16:10]}  Qc1+ {[%clk 0:14:55]}
31. Rf1 {[%clk 0:08:54]}  Bxf1 {[%clk 0:14:56]} 32. Bxf1 {[%clk 0:07:25]}  Nb1 {[%clk 0:09:59]} 33. Rf5 {[%clk 0:05:49]}  Nd2 {[%clk 0:06:55]}
34. Qe3 {[%clk 0:06:15]}  Qb1 {[%clk 0:05:42]} 35. Qd3 {[%clk 0:06:19]}  Qe1 {[%clk 0:03:45]} 36. Kg1 {[%clk 0:05:41]}  Nb3 {[%clk 0:02:10]}
37. Qc4 {[%clk 0:03:31]}  Qe3+ {[%clk 0:02:18]} 38. Rf2 {[%clk 0:03:47]}  c5 {[%clk 0:00:36]} 39. Qxa4 {[%clk 0:03:29]}  Nd4 {[%clk 0:00:56]}
40. Qc4 {[%clk 0:03:31]}  Nf3+ {[%clk 0:00:38]} 41. Kg2 {[%clk 0:01:18]}  Nxh2 {[%clk 0:27:41]} 42. Be2 {[%clk 0:30:43]}  g6 {[%clk 0:13:56]}
43. Qf4 {[%clk 0:28:41]}  Qxf4 {[%clk 0:13:43]} 44. gxf4 {[%clk 0:29:02]}  Rb8 {[%clk 0:13:55]} 45. b4 {[%clk 0:25:49]}  cxb4 {[%clk 0:14:10]}
46. axb4 {[%clk 0:26:14]}  Rxb4 {[%clk 0:14:34]} 47. Kxh2 {[%clk 0:26:40]}  Rb2 {[%clk 0:14:15]} 48. Kg3 {[%clk 0:26:53]}  Kg7 {[%clk 0:14:29]}
49. Kf3 {[%clk 0:26:16]}  Rb3+ {[%clk 0:12:19]} 50. Ke4 {[%clk 0:26:16]}  f5+ {[%clk 0:12:33]} 51. Kd4 {[%clk 0:26:36]}  Rb2 {[%clk 0:12:43]}
52. Ke3 {[%clk 0:26:33]}  h6 {[%clk 0:12:48]} 53. Rf1 {[%clk 0:26:58]}  Kf6 {[%clk 0:09:49]} 54. Bd3 {[%clk 0:26:07]}  g5 {[%clk 0:07:49]}
55. fxg5+ {[%clk 0:26:22]}  hxg5 {[%clk 0:08:14]} 56. Rxf5+ {[%clk 0:26:44]}  Ke6 {[%clk 0:08:39]} 57. Rxg5 {[%clk 0:27:08]}  Rb4 {[%clk 0:08:24]}
58. Be4 {[%clk 0:27:30]}  Rb2 {[%clk 0:07:55]} 59. Kf4 {[%clk 0:26:53]}  Kd6 {[%clk 0:07:36]} 60. Rd5+ {[%clk 0:27:09]}  Ke6 {[%clk 0:07:55]}
61. Rh5 {[%clk 0:27:10]}  Kd6 {[%clk 0:08:13]} 62. Rh6+ {[%clk 0:27:21]}  Kc5 {[%clk 0:08:35]} 63. Ke5 {[%clk 0:27:46]}  Rb6 {[%clk 0:06:56]}
64. Rh1 {[%clk 0:27:09]}  Kb4 {[%clk 0:05:45]} 65. Kd4 {[%clk 0:26:41]}  Rd6 {[%clk 0:05:42]} 66. Bd5 {[%clk 0:27:06]}  Rb6 {[%clk 0:05:55]}
67. Rb1+ {[%clk 0:21:27]}  Ka5 {[%clk 0:06:20]} 68. Rc1 {[%clk 0:21:42]}  Kb4 {[%clk 0:06:39]} 69. Rc8 {[%clk 0:16:34]}  Rb5 {[%clk 0:05:15]}
70. Bc6 {[%clk 0:15:23]}  Rb6 {[%clk 0:05:34]} 71. Kd5 {[%clk 0:15:41]}  Kb3 {[%clk 0:04:19]} 72. Kc5 {[%clk 0:15:44]}  Rb4 {[%clk 0:04:43]}
73. Bd5+ {[%clk 0:16:02]}  Kc3 {[%clk 0:05:05]} 74. Rf8 {[%clk 0:15:54]}  Rb2 {[%clk 0:04:59]} 75. Rf3+ {[%clk 0:16:14]}  Kd2 {[%clk 0:05:19]}
76. Rg3 {[%clk 0:16:05]}  Rb8 {[%clk 0:03:53]} 77. Kd4 {[%clk 0:16:27]}  Rb4+ {[%clk 0:03:44]} 78. Bc4 {[%clk 0:16:51]}  Rb2 {[%clk 0:04:11]}
79. Bb3 {[%clk 0:15:21]}  Kc1 {[%clk 0:04:08]} 80. Rg1+ {[%clk 0:15:05]}  Kd2 {[%clk 0:04:31]} 81. Kc4 {[%clk 0:15:28]}  Ke3 {[%clk 0:04:46]}
82. Rg3+ {[%clk 0:15:02]}  Kf4 {[%clk 0:05:05]} 83. Rg8 {[%clk 0:15:05]}  Ke5 {[%clk 0:04:52]} 84. Kc3 {[%clk 0:15:22]}  Rh2 {[%clk 0:05:11]}
85. Re8+ {[%clk 0:15:47]}  Kd6 {[%clk 0:05:27]} 86. Re6+ {[%clk 0:15:56]}  Kc5 {[%clk 0:05:45]} 87. Bc4 {[%clk 0:16:04]}  Rh3+ {[%clk 0:05:48]}
88. Bd3 {[%clk 0:16:26]}  Rh4 {[%clk 0:05:23]} 89. Ra6 {[%clk 0:16:38]}  Kd5 {[%clk 0:05:10]} 90. Ra5+ {[%clk 0:16:58]}  Ke6 {[%clk 0:05:27]}
91. Bc4+ {[%clk 0:16:39]}  Kf6 {[%clk 0:05:16]} 92. Ba6 {[%clk 0:16:45]}  Ke6 {[%clk 0:05:28]} 93. Bb7 {[%clk 0:17:03]}  Kd6 {[%clk 0:04:59]}
94. Kd3 {[%clk 0:17:26]}  Rb4 {[%clk 0:04:53]} 95. Be4 {[%clk 0:17:43]}  Ke6 {[%clk 0:05:02]} 96. Ke3 {[%clk 0:18:07]}  Kd6 {[%clk 0:04:56]}
97. Kf4 {[%clk 0:16:53]}  Rb8 {[%clk 0:03:55]} 98. Ra6+ {[%clk 0:17:09]}  Kc5 {[%clk 0:04:06]} 99. Rc6+ {[%clk 0:17:34]}  Kb4 {[%clk 0:04:21]}
100. Ke5 {[%clk 0:17:45]}  Re8+ {[%clk 0:03:53]} 101. Kd4 {[%clk 0:18:09]}  Rd8 {[%clk 0:04:16]} 102. Bd5 {[%clk 0:18:35]}  Rb8 {[%clk 0:04:05]}
103. Ra6 {[%clk 0:18:05]}  Kb5 {[%clk 0:03:34]} 104. Bc4+ {[%clk 0:18:10]}  Kb4 {[%clk 0:03:53]} 105. Ra1 {[%clk 0:17:28]}  Rb6 {[%clk 0:03:52]}
106. Rc1 {[%clk 0:17:14]}  Rd6 {[%clk 0:04:06]} 107. Bd5 {[%clk 0:17:32]}  Rb6 {[%clk 0:04:29]} 108. Rc2 {[%clk 0:14:10]} 1/2-1/2

[Event "2026 European Womens Championship"]
[Site "Batumi, GE"]
[Date "2026.06.03"]
[Round "9"]
[White "Zeliantsova, Kseniya"]
[Black "Avetisyan, Ani"]
[Result "1-0"]
[Board "50"]
[TimeControl "5400+30"]
[WhiteFideId "13512617"]
[BlackFideId "13319035"]
[WhiteElo "2176"]
[BlackElo "2052"]
[WhiteTitle "WFM"]
[WhiteClock "0:30:57"]
[BlackClock "0:04:18"]
[Variant "Standard"]

1. e4 {[%clk 1:30:57]}  c5 {[%clk 1:30:56]} 2. Nf3 {[%clk 1:31:20]}  e6 {[%clk 1:31:23]} 3. d4 {[%clk 1:31:38]}  cxd4 {[%clk 1:31:50]}
4. Nxd4 {[%clk 1:32:02]}  Nc6 {[%clk 1:32:17]} 5. Nc3 {[%clk 1:32:05]}  Qc7 {[%clk 1:32:44]} 6. g3 {[%clk 1:32:15]}  a6 {[%clk 1:32:27]}
7. Bg2 {[%clk 1:32:39]}  Nf6 {[%clk 1:32:29]} 8. O-O {[%clk 1:32:34]}  Nxd4 {[%clk 1:32:21]} 9. Qxd4 {[%clk 1:32:57]}  Bc5 {[%clk 1:32:49]}
10. Bf4 {[%clk 1:32:44]}  d6 {[%clk 1:33:04]} 11. Qd3 {[%clk 1:32:47]}  h6 {[%clk 1:23:06]} 12. Na4 {[%clk 1:32:34]}  e5 {[%clk 1:21:42]}
13. Nxc5 {[%clk 1:32:14]}  exf4 {[%clk 1:18:02]} 14. Nb3 {[%clk 1:32:02]}  fxg3 {[%clk 1:15:52]} 15. hxg3 {[%clk 1:31:13]}  Be6 {[%clk 1:08:13]}
16. Rfd1 {[%clk 1:24:38]}  Rd8 {[%clk 1:03:18]} 17. e5 {[%clk 1:18:36]}  dxe5 {[%clk 1:03:36]} 18. Qxd8+ {[%clk 1:18:59]}  Qxd8 {[%clk 1:04:05]}
19. Rxd8+ {[%clk 1:19:20]}  Kxd8 {[%clk 1:04:34]} 20. Bxb7 {[%clk 1:19:40]}  g5 {[%clk 0:56:25]} 21. Nc5 {[%clk 1:13:21]}  Bf5 {[%clk 0:52:59]}
22. Nxa6 {[%clk 1:11:36]}  h5 {[%clk 0:47:15]} 23. c4 {[%clk 1:01:57]}  h4 {[%clk 0:44:16]} 24. c5 {[%clk 1:01:46]}  h3 {[%clk 0:25:18]}
25. c6 {[%clk 0:47:23]}  e4 {[%clk 0:21:38]} 26. c7+ {[%clk 0:39:08]}  Ke7 {[%clk 0:22:03]} 27. f3 {[%clk 0:37:50]}  h2+ {[%clk 0:19:27]}
28. Kh1 {[%clk 0:31:15]}  exf3 {[%clk 0:15:09]} 29. Bxf3 {[%clk 0:30:54]}  g4 {[%clk 0:04:00]} 30. Bb7 {[%clk 0:28:41]}  Kd6 {[%clk 0:00:56]}
31. Rd1+ {[%clk 0:28:11]}  Ke7 {[%clk 0:00:41]} 32. Rd2 {[%clk 0:27:31]}  Be4+ {[%clk 0:00:39]} 33. Bxe4 {[%clk 0:27:55]}  Nxe4 {[%clk 0:01:06]}
34. Re2 {[%clk 0:27:53]}  f5 {[%clk 0:01:35]} 35. Nc5 {[%clk 0:28:00]}  Kd6 {[%clk 0:01:01]} 36. Nxe4+ {[%clk 0:28:24]}  fxe4 {[%clk 0:01:28]}
37. Rxe4 {[%clk 0:28:50]}  Kxc7 {[%clk 0:01:56]} 38. Rxg4 {[%clk 0:28:57]}  Rd8 {[%clk 0:02:22]} 39. Rc4+ {[%clk 0:29:20]}  Kb6 {[%clk 0:02:48]}
40. Rc2 {[%clk 0:29:35]}  Ra8 {[%clk 0:02:56]} 41. a3 {[%clk 0:29:46]}  Kb5 {[%clk 0:03:20]} 42. Kxh2 {[%clk 0:30:02]}  Ka4 {[%clk 0:03:29]}
43. Rc4+ {[%clk 0:30:10]}  Kb3 {[%clk 0:03:52]} 44. Rb4+ {[%clk 0:30:36]}  Kc2 {[%clk 0:04:18]} 45. g4 {[%clk 0:30:57]} 1-0